Cogmind - Beta 9.3 @@@ ROGUE MODE // 2019.12.31 @ 20:06:09 // Winter2019/RPGLIKE Player: Cassie Rose Result: Destroyed by G-34 Mercenary with Small Laser Performance ------------- Evolutions (1) 500 Regions Visited (2) 400 Robots Destroyed (32) 160 Value Destroyed (620) 620 Prototype IDs (0) 0 Alien Tech Used (0) 0 Bonus (0) 0 TOTAL SCORE: 1680 Bonus ------- None Cogmind --------- Core Integrity 0/650 Matter 300/300 Energy 278/290 System Corruption 0% Temperature Cool (67) Movement Treading (160) Location -9/Materials Parts ------- > --- POWER (2) -------- Light Ion Engine Improved Ion Engine > --- PROPULSION (2) --- Improved Treads Improved Treads > --- UTILITY (5) ------ Structural Scanner Sensor Array Improved Terrain Scanner Seismic Analyzer ECM Suite > --- WEAPON (2) ------- Beam Rifle Beam Rifle > --- INVENTORY (0) ---- (None) Peak State ------------ > --- POWER ------------ Light Ion Engine Improved Ion Engine > --- PROPULSION ------- Improved Treads Improved Treads > --- UTILITY ---------- Structural Scanner Sensor Array Improved Terrain Scanner Seismic Analyzer ECM Suite > --- WEAPON ----------- Beam Rifle Beam Rifle > --- INVENTORY -------- (None) [Rating: 17] Favorites ----------- Power Light Ion Engine Engine Light Ion Engine Propulsion Light Treads Treads Light Treads Utility Seismic Analyzer Device Improved Terrain Scanner Processor Seismic Analyzer Weapon Assault Rifle Energy Gun Beam Rifle Ballistic Gun Assault Rifle Build | -11 -10 -9 ------- Run | Scr Mat Mat Slots Evolved 7 | 5 1 1 Power 1 | 1 . . Propulsion 1 | 1 . . Utility 4 | 2 1 1 Weapon 1 | 1 . . Parts Attached 18 | 8 8 2 Power 4 | 2 1 1 Engine 4 | 2 1 1 Core . | . . . Reactor . | . . . Propulsion 4 | 2 2 . Treads 4 | 2 2 . Leg . | . . . Wheel . | . . . Hover . | . . . Flight . | . . . Utility 5 | 2 2 1 Device 4 | 1 2 1 Storage . | . . . Processor 1 | 1 . . Hackware . | . . . Protection . | . . . Artifact . | . . . Weapon 5 | 2 3 . Energy Gun 4 | 1 3 . Energy Cannon . | . . . Ballistic Gun 1 | 1 . . Ballistic Cannon . | . . . Launcher . | . . . Special Weapon . | . . . Impact Weapon . | . . . Slashing Weapon . | . . . Piercing Weapon . | . . . Special Melee Weapon . | . . . Unidentified Prototypes . | . . . Parts Lost . | . . . Power . | . . . Propulsion . | . . . Utility . | . . . Weapon . | . . . Highest Loss Streak . | . . . Average Slot Usage (%) 92 | . 91 94 Engine 20 | . 20 18 Treads 20 | . 20 18 Device 19 | . 18 30 Processor 10 | . 10 9 Energy Gun 13 | . 12 18 Ballistic Gun 7 | . 7 . Naked Turns . | . . . Heaviest Build 20 | 12 17 20 Greatest Support 46 | 40 46 46 Greatest Overweight (x) . | . . . Average Overweight (x) . | . . . Largest Inventory Capacity . | . . . Average Capacity . | . . . Most Carried . | . . . Average Carried . | . . . Final Capacity . | . . . Final Carried . | . . . Class Distribution -------------------- 40% | Mutant 37% | Skirmisher 12% | Scavenger-Skirmisher 10% | Infiltrator-Skirmisher Dominant Class ---------------- Skirmisher | -10/Materials Scavenger-Skirmisher | -9/Materials Resources | -11 -10 -9 ----------- Run | Scr Mat Mat Matter Collected 704 | 334 307 63 Remotely . | . . . Salvage Created 1138 | 184 777 177 Parts 66 | 9 47 10 Haulers Intercepted 2 | . 2 . Recyclers Shooed 2 | . 1 1 Parts Field Recycled . | . . . Retrieved Matter . | . . . Parts Self-Destructed . | . . . Prevented . | . . . Kills | -11 -10 -9 ------- Run | Scr Mat Mat Combat Hostiles Destroyed 16 | . 14 2 Guns 16 | . 14 2 Classes Destroyed 9 | 3 5 1 Worker 1 | 1 . . Tunneler 5 | 4 1 . Hauler 2 | . 2 . Recycler 2 | 1 1 . Operator 3 | . 3 . Watcher 3 | . 2 1 Swarmer 5 | . 5 . Grunt 9 | . 9 . Sentry 2 | . . 2 Best Kill Streak 5 | 2 5 2 Combat Bots Only 4 | . 4 1 Max Kills in Single Turn 2 | 1 2 1 Gunslinging . | . . . Exploded . | . . . Melee . | . . . Uniques/NPCs Destroyed . | . . . Combat | -11 -10 -9 -------- Run | Scr Mat Mat Damage Taken 1019 | . 746 273 Core 828 | . 602 226 Absorbed by Shields . | . . . Redirected to Core 624 | . 461 163 Core Remaining (%) 67 | 100 34 . Volleys Fired 121 | 18 90 13 Largest 2 | 2 2 2 Hottest 112 | 60 85 112 Shots Fired 241 | 36 179 26 Gun 241 | 36 179 26 Cannon . | . . . Launcher . | . . . Special . | . . . Kinetic 108 | 18 90 . Thermal 133 | 18 89 26 Explosive . | . . . Electromagnetic . | . . . Robot Hit Streak 12 | 5 8 12 Robot Miss Streak 4 | 3 4 2 Penetration Max . | . . . Secondary Targets 3 | . 3 . Max Gunslinging Chain 1 | . 1 . Shots Hit Robots 153 | 23 110 20 Core Hits 54 | 7 39 8 Critical Hits . | . . . Critical Kills . | . . . Critical Parts Destroyed . | . . . Melee Attacks . | . . . Impact . | . . . Slashing . | . . . Piercing . | . . . Sneak Attacks . | . . . Combat Hostiles . | . . . Follow-up Attacks . | . . . Damage Inflicted 2004 | 274 1456 274 Guns 2004 | 274 1456 274 Cannons . | . . . Explosions . | . . . Melee . | . . . Ramming . | . . . Kinetic 785 | 138 647 . Thermal 1219 | 136 809 274 Explosive . | . . . Electromagnetic . | . . . Impact . | . . . Slashing . | . . . Piercing . | . . . Highest Corruption 2 | . 2 . Average Corruption 2 | . 2 . Corruption Purged . | . . . Effects 6 | . 6 . Message Errors 2 | . 2 . Heat Flow Errors 1 | . 1 . Energy Discharges 1 | . 1 . Data Loss (minor) 1 | . 1 . Targeting Errors 1 | . 1 . Overload Shots . | . . . Overflow Damage . | . . . Projectiles . | . . . Explosions . | . . . Melee . | . . . Knockbacks . | . . . Impact . | . . . Kinetic . | . . . Secondary . | . . . Self-Inflicted Damage . | . . . Shots . | . . . Rammed . | . . . Targets Rammed . | . . . Kicked . | . . . Crushed . | . . . Highest Temperature 230 | . 230 87 Average Temperature 56 | . 61 36 Received Heat Transfer 456 | . 315 141 Siege Activations . | . . . Robots Corrupted . | . . . Combat Hostiles . | . . . Parts Fried . | . . . Impact Corruptions . | . . . Robots Melted . | . . . Combat Hostiles . | . . . Parts Melted 6 | . 3 3 Heat Transferred 2935 | 300 1932 703 Parts Sabotaged . | . . . Parts Stolen . | . . . Parts Stripped . | . . . Power Chain Reactions . | . . . Missiles Intercepted . | . . . Alert | -11 -10 -9 ------- Run | Scr Mat Mat Peak Influence 290 | 30 290 126 Average Influence 110 | 12 135 84 Maximum Alert Level 1 | . 1 . Low Security (%) 89 | 100 86 100 Level 1 10 | . 13 . Level 2 . | . . . Level 3 . | . . . Level 4 . | . . . Level 5 . | . . . High Security . | . . . Max Security . | . . . Squads Dispatched 5 | . 5 . Investigation . | . . . Extermination . | . . . Reinforcement 5 | . 5 . Assault . | . . . Garrison . | . . . Intercept . | . . . Construction Impeded . | . . . Haulers Reinforced . | . . . Stealth | -11 -10 -9 --------- Run | Scr Mat Mat Distress Signals 3 | . 3 . Communications Jammed . | . . . Distress Signals . | . . . Times Spotted 43 | . 36 7 Peak Tracking Total 4 | . 4 3 Tactical Retreats . | . . . Traps | -11 -10 -9 ------- Run | Scr Mat Mat Traps Triggered 2 | . 2 . Indirectly . | . . . Trap Hack Attempts . | . . . Triggered . | . . . Disarmed . | . . . Reprogrammed . | . . . Reused . | . . . Traps Extracted . | . . . Installed . | . . . Triggered . | . . . Machines | -11 -10 -9 ---------- Run | Scr Mat Mat Machines Disabled . | . . . Max in Single Turn . | . . . Machines Sabotaged . | . . . Garrisons Compromised . | . . . Overloaded Fab Kills . | . . . Fab Network Shutdowns . | . . . Hacking | -11 -10 -9 --------- Run | Scr Mat Mat Machines Accessed . | . . . Terminals . | . . . Fabricators . | . . . Repair Stations . | . . . Recycling Units . | . . . Scanalyzers . | . . . Garrison Access . | . . . Total Hacks . | . . . Successful . | . . . Failed . | . . . Catastrophic . | . . . Database Lockouts . | . . . Manual . | . . . Terminals . | . . . Fabricators . | . . . Repair Stations . | . . . Recycling Units . | . . . Scanalyzers . | . . . Garrison Access . | . . . Terminal Hacks . | . . . Fabricator Hacks . | . . . Repair Station Hacks . | . . . Recycling Unit Hacks . | . . . Scanalyzer . | . . . Garrison Access Hacks . | . . . Unauthorized Hacks . | . . . Terminals . | . . . Fabricators . | . . . Repair Stations . | . . . Recycling Units . | . . . Scanalyzers . | . . . Garrison Access . | . . . Data Cores Recovered . | . . . Used . | . . . Hacking Detections . | . . . Full Trace Events . | . . . Feedback Events . | . . . Feedback Blocked . | . . . Robot Schematics Acquired . | . . . Robots Built . | . . . Matter . | . . . Time . | . . . Total Robot Build Rating . | . . . Part Schematics Acquired . | . . . Parts Built . | . . . Matter . | . . . Time . | . . . Total Part Build Rating . | . . . Parts Repaired . | . . . Time . | . . . Parts Recycled . | . . . Recycled Matter . | . . . Retrieved Matter . | . . . Retrieved Components . | . . . Parts Scanalyzed . | . . . Part Schematics Acquired . | . . . Parts Damaged . | . . . Bothacking | -11 -10 -9 ------------ Run | Scr Mat Mat Used RIF Installer . | . . . Robots Hacked . | . . . Non-combat . | . . . Combat . | . . . Robot Hacks Applied . | . . . Relay Couplers Released . | . . . Robots Rewired . | . . . Allies Hacked . | . . . Hacks Repelled . | . . . Allies | -11 -10 -9 -------- Run | Scr Mat Mat Total Allies . | . . . Largest Group . | . . . Highest-Rated Group . | . . . Highest-Rated Ally . | . . . Total Orders . | . . . Ally Attacks . | . . . Total Damage . | . . . Kills . | . . . Allies Corrupted . | . . . Allies Melted . | . . . Intel | -11 -10 -9 ------- Run | Scr Mat Mat Robot Analysis Total . | . . . Derelict Logs Recovered . | . . . Drone Launches . | . . . Drone Recoveries . | . . . Exploration | -11 -10 -9 ------------- Run | Scr Mat Mat Turns Passed 1707 | 289 1289 129 Spaces Moved 807 | 142 618 47 Core 3 | 3 . . Treads 804 | 139 618 47 Legs . | . . . Wheels . | . . . Hover . | . . . Flight . | . . . Fastest Speed 50 | 50 160 160 Average Speed 159 | 157 160 160 Slowest Speed 160 | 160 160 160 Overloaded Moves . | . . . Propulsion Burnouts . | . . . Robots Hopped . | . . . Cave-ins Triggered . | . . . Exploration Rate (%) 38 | 7 98 10 Regions Visited 2 Branch Regions . Pre-discovered Areas . | . . . Known Exits Taken . | . . . Unknown Exits Taken 2 | 1 1 . Scrap Searched . | . . . Spaces Dug . | . . . Terrain Destroyed . | . . . Melee . | . . . Projectile . | . . . AOE . | . . . Actions | -11 -10 -9 --------- Run | Scr Mat Mat Total 983 | 167 741 75 Wait 22 | . 10 12 Move 805 | 141 617 47 Hop . | . . . Pick Up . | . . . Fast Attach 12 | 8 3 1 Attach . | . . . Detach . | . . . Swap 6 | . 5 1 Drop 7 | . 6 1 Fire 121 | 18 90 13 Melee . | . . . Ram . | . . . Kick . | . . . Crush . | . . . Escape Stasis . | . . . Rewire . | . . . Trap . | . . . Miscellaneous 10 | . 10 . Route ------- -11/Scrapyard -10/Materials (discovered 5 exits: [*Mat x3] / [*Min x2]) -9/Materials History --------- Turn | Location | Event 1 | -11/Scrapyard | Upgraded with Power slot (x1) 1 | -11/Scrapyard | Upgraded with Propulsion slot (x1) 1 | -11/Scrapyard | Upgraded with Utility slot (x2) 1 | -11/Scrapyard | Upgraded with Weapon slot (x1) 6 | -11/Scrapyard | Discovered new exit (range 14) 290 | -11/Scrapyard | Entered Materials 310 | -10/Materials | Build established: Mutant 450 | -10/Materials | Discovered new exit (range 12) 685 | -10/Materials | Discovered new exit (range 13) 762 | -10/Materials | Core integrity fell below 50% 892 | -10/Materials | Reached level 2 895 | -10/Materials | Upgraded with Utility slot (x1) 944 | -10/Materials | Discovered new exit (range 11) 1005 | -10/Materials | Build established: Skirmisher 1134 | -10/Materials | Discovered new exit (range 15) 1525 | -10/Materials | Discovered new exit (range 7) 1579 | -10/Materials | Entered another Materials area 1580 | -9/Materials | Core integrity fell below 50% 1581 | -9/Materials | Reached level 3 1597 | -9/Materials | Upgraded with Utility slot (x1) 1689 | -9/Materials | Core integrity fell below 20% 1708 | -9/Materials | Destroyed by G-34 Mercenary with Small Laser Last Messages --------------- 01581_ Reached level 3. 01597_ Upgraded: Utility Slot (+1) 01597_ Upgraded: Heat Dissipation (+6) 01609_ K-01 Serf collects debris. 01621_ Processing Tank disabled. 01623_ Heat Sink melted. 01623_ Lgt. Armor Plating melted. 01623_ Y-45 Defender destroyed. 01630_ Acquired 43 matter. 01633_ Dropped Ion Engine. 01648_ Lgt. Treads melted. 01648_ Y-45 Defender destroyed. 01651_ W-16 Scout destroyed. 01661_ Acquired 10 matter. 01666_ Acquired Sensor Array. 01667_ Acquired 10 matter. 01692_ K-01 Serf collects debris. 01700_ R-06 Scavenger collects Hover Unit. 01701_ K-01 Serf collects debris. 01704_ R-06 Scavenger collects Visual Processing Unit. Map ----- +----------------------------------------------------+ | | | | | ?????????????????????????????????????????????????? | | ?????????????????????????????????#?#??##?????#???? | | ????????????????????????????????#??????????#?#???? | | ?????????????????????????????????#?????#????#???#? | | ???????????????????????????????????#?###????#????? | | ???????????????????????????????#???#??#?#??#?????? | | ??????????????????????????? ????#?##?##??#?##????? | | ??????????????????????????? ?#?#??####??#?#?##??#? | | ??????????????????????#+#######?##?#?##########?## | | ????????????????????# ?###?########?#?######?? | | ????????????????? ?# ?##?#######??#?######??? | | ????????????????? ? ?##?#?###?####### ##?#? | | ???????????????" ?# ################ #?##? | | ?????????????? ?????# % ###?## # ##### | | ??????????? ?? ???? ?# ?#?#?# """ # ##### | | ????????????????##?#?# ####### """ # # | | ??????????? ?# ???? ?# #####?# """ # # |! | | ??????????? #? ?? ? ?+ ##?#?## [*""" # # |! | | ?????????????# ??? ? # ##?#### "Y"%["" # # |! | | ?????????? ?##?###?## ###?#?# """= # # | | ??????????############ #?#??## # # """ | | ?????????^ ^^ #############+### " """ | | ????????? ggg########## # """ | | ???????? ^ k @ [% # | | ?????????##?#???###### =%! # | | ??????????? #?#??##?## r ######## | | ????????? ? ?#????#### !| # ? ?# ! | | ????????????#??##?#### /*! | # ##### | | ?????????????#??###?## /* # ? ##?#? | | ?????????????#? ? "T" ** # ? ?#?## | | ??????????? ?? ? + ? ?#??# | | ?????????????#? # ##### | | ?????????????# #########+######### # ? ####? | | ?????????????? ??#???#? ????##### # ? ?#?## | | ???????????????#?###?# ? ?T #?#### #? ? ##?#? | | ???????????????????#???? ? ?###### # ?#???? | | ?????????????????#???# ? ?#???## # ??????# | | ??????????????????#?#? ? #????# ##?#??????#? | | ?????????????????????? ??? #####? ?#??????????? | | ?????????????????????????????#???#???????????????? | | ?????????????????????????????????????????????????? | | ?????????????????????????????????????????????????? | | ?????????????????????????????????????????????????? | | ?????????????????????????????????????????????????? | | ?????????????????????????????????????????????????? | | ?????????????????????????????????????????????????? | | ?????????????????????????????????????????????????? | | ?????????????????????????????????????????????????? | +----------------------------------------------------+ Best States ------------- Heat Dissipation 43 Energy Generation 17 Energy Capacity 290 Matter Stores 300 Matter Capacity 300 Sight Range 16 Robot Scan Range 10 Terrain Scan Range 16 Terrain Scan Density 160 ECM Strength 1 Evasion (%) 40 Recoil Reduction 2 Item Schematics ----------------- None Robot Schematics ------------------ None Fabricated ------------ Nothing Alien Tech Used ----------------- None Achievements -------------- None Challenges ------------ None RPGLIKE | -11 -10 -9 --------- Run | Scr Mat Mat Levels Raised 2 | . 1 1 XP Earned 6825 | 3000 1990 1835 XP Spent 5985 | 2970 1525 1490 Upgrades 13 | 8 3 2 Power Slot 1 | 1 . . Propulsion Slot 1 | 1 . . Utility Slot 4 | 2 1 1 Weapon Slot 1 | 1 . . Core Integrity 1 | . 1 . Heat Dissipation 3 | 2 . 1 Terrain Scan Density 1 | 1 . . Ranged Accuracy 1 | . 1 . Protomatter Created 77 | . 77 . Integrity Restored 198 | . 198 . Core 176 | . 176 . Parts 22 | . 22 . Protomatter Decayed 9 | . 9 . Game ------ Seed AbsorptionMachinePick Manual? 0 Play Time 00:14:09 Cumulative 82.5 hours Start 2019.12.31 @ 19:53:33 End 2019.12.31 @ 20:06:09 Sessions 1 Manual Loads 0 Difficulty Rogue Special Mode Winter2019/RPGLIKE Game No. 138 Rogue 138 Adventurer 0 Explorer 0 Win Type - Total 0 Types 0/0/0/0/0/0/0 Lore% 22 Gallery% 28 Achievement% 28 Wizard Run 0 Options --------- ASCII 0 Keyboard 0 Movement Mouse Keybinds 0 Fullscreen 2 Font 18/SmallcapsGlow Map View 76x50 Tactical HUD 1 Map Filters NONE Filters LOW_CONTRAST(13,24,33)|BRIGHTNESS(120)|SATURATION(80) Steam 1 RUN: e8ad0216-0775-4a4d-afe8-7a0ea1daa965